Cogmind - Beta 16 @@@ ROGUE MODE // 2025.12.11 @ 22:09:47 Player: celerysam Result: Destroyed by 1R-27L(R) with Subdweller Laser Performance ------------- Evolutions (0) 0 Regions Visited (2) 400 Robots Destroyed (32) 160 Value Destroyed (652) 652 Prototype IDs (0) 0 Alien Tech Used (0) 0 Bonus (0) 0 TOTAL SCORE: 1212 Bonus ------- None Cogmind --------- Core Integrity 0/250 Matter 117/300 Energy 250/250 System Corruption 2% Temperature Cool (6) Movement Rolling (150) Ox4 Location -10/Subcaves Parts ------- > --- POWER (1) -------- Ion Engine > --- PROPULSION (2) --- Subdweller Monowheel > --- UTILITY (2) ------ Huge Storage Unit Makeshift Light Armor Plating > --- WEAPON (2) ------- Battle Cannon Subdweller Shrapnel Launcher > --- INVENTORY (25) --- Ion Engine Light Nuclear Core Light Treads Light Treads Light Treads Light Treads Wheel Wheel Wheel Wheel Subdweller Monowheel Small Storage Unit Structural Scanner Scrap Shield Hacking Suite Subdweller Laser Beam Cannon Assault Rifle Heavy Battle Rifle Light Cannon Battle Cannon Dirty Datajack (20) Datajack Mining Laser Peak State ------------ > --- POWER ------------ Ion Engine > --- PROPULSION ------- Wheel Subdweller Monowheel > --- UTILITY ---------- Huge Storage Unit Makeshift Light Armor Plating > --- WEAPON ----------- Battle Cannon Subdweller Shrapnel Launcher > --- INVENTORY -------- Ion Engine Light Nuclear Core Light Treads Light Treads Light Treads Light Treads Wheel Wheel Wheel Wheel Subdweller Monowheel Small Storage Unit Structural Scanner Scrap Shield Hacking Suite Subdweller Laser Beam Cannon Assault Rifle Battle Rifle Light Cannon Battle Cannon Dirty Datajack Datajack Mining Laser [Rating: 17] Favorites ----------- Power Ion Engine Engine Ion Engine Propulsion Wheel Treads Light Treads Leg Aluminum Leg Wheel Wheel Utility Huge Storage Unit Device Heat Sink Storage Huge Storage Unit Protection Light Armor Plating Weapon Light Cannon Energy Gun Small Laser Ballistic Gun Assault Rifle Ballistic Cannon Light Cannon Launcher Subdweller Shrapnel Launcher Build | -11 -10 -10 ------- Run | Yrd Mat Sub Slots Evolved . | . . . Power . | . . . Propulsion . | . . . Utility . | . . . Weapon . | . . . Parts Attached 25 | 8 7 10 Power 3 | 1 . 2 Engine 3 | 1 . 2 Core . | . . . Reactor . | . . . Propulsion 8 | 3 3 2 Treads 2 | 1 1 . Leg 2 | 2 . . Wheel 4 | . 2 2 Hover . | . . . Flight . | . . . Utility 5 | 1 2 2 Device 1 | . . 1 Storage 2 | 1 1 . Processor . | . . . Hackware . | . . . Protection 2 | . 1 1 Artifact . | . . . Weapon 9 | 3 2 4 Energy Gun 1 | 1 . . Energy Cannon . | . . . Ballistic Gun 2 | 2 . . Ballistic Cannon 5 | . 2 3 Launcher 1 | . . 1 Special Weapon . | . . . Impact Weapon . | . . . Slashing Weapon . | . . . Piercing Weapon . | . . . Special Melee Weapon . | . . . Unidentified Prototypes . | . . . Parts Lost 8 | . . 8 Power 2 | . . 2 Propulsion 3 | . . 3 Utility 1 | . . 1 Weapon 2 | . . 2 Highest Loss Streak 3 | . . 3 To Critical Strikes . | . . . Average Backups 20 | 4 17 24 Power 2 | . 2 2 Propulsion 8 | 2 7 8 Utility 3 | . 2 3 Weapon 5 | 1 3 6 Tool/Special . | . . . Unused Backups 24 | . 1 23 Power 2 | . . 2 Propulsion 8 | . . 8 Utility 3 | . . 3 Weapon 9 | . 1 8 Tool/Special 2 | . . 2 Average Slot Usage (%) 98 | . 99 97 Engine 13 | . 14 13 Wheel 27 | . 26 27 Device 4 | . . 7 Storage 14 | . 14 14 Protection 8 | . 13 5 Ballistic Gun 10 | . 24 . Ballistic Cannon 13 | . 3 22 Launcher 2 | . . 5 Peak Build Rating 17 | 6 9 17 Average Rating 9 | 3 8 11 On Entrance 5 | . 6 9 Avg Prop Armor Cover (%) 13 | 13 . . Naked Turns . | . . . Heaviest Build 100 | 14 94 100 Greatest Support 30 | 20 20 30 Greatest Overweight (x) 4 | 2 4 4 Average Overweight (x) 3 | . 3 3 Largest Inventory Capacity 25 | 8 25 25 Average Capacity 24 | 6 24 25 Most Carried 25 | 7 25 25 Average Carried 21 | 5 17 24 Final Capacity 25 | 8 25 25 Final Carried 25 | 6 25 25 Class Distribution -------------------- 100% | Mutant Dominant Class ---------------- Mutant | -10/Materials Mutant | -10/Subcaves Resources | -11 -10 -10 ----------- Run | Yrd Mat Sub Matter Collected 1087 | 224 298 565 Remotely . | . . . Salvage Created 635 | . 441 194 Parts 51 | . 34 17 Haulers Intercepted 2 | . 2 . Recyclers Shooed . | . . . Parts Field Recycled . | . . . Retrieved Matter . | . . . Parts Self-Destructed 10 | . . 10 Prevented . | . . . Parts Restored . | . . . Kills | -11 -10 -10 ------- Run | Yrd Mat Sub Combat Hostiles Destroyed 21 | . 8 13 Guns 8 | . 8 . Cannons 9 | . . 9 AOE 4 | . . 4 Classes Destroyed 8 | . 6 2 Worker 5 | . 5 . Hauler 2 | . 2 . Operator 1 | . 1 . Turret 1 | . . 1 Watcher 2 | . 2 . Swarmer 9 | . 5 4 Grunt 3 | . 3 . Subdweller 9 | . . 9 Best Kill Streak 7 | . 5 7 Combat Bots Only 6 | . 3 6 Max Kills in Single Turn 2 | . 2 2 Gunslinging . | . . . Exploded 2 | . . 2 Melee . | . . . Uniques/NPCs Destroyed . | . . . Combat | -11 -10 -10 -------- Run | Yrd Mat Sub Hostile Shots Fired 107 | . 40 67 Missed 25 | . 11 14 Hits 82 | . 29 53 Projectile 82 | . 29 53 Critical Strikes 2 | . 1 1 Damage Taken 1376 | . 297 1079 Core 269 | . 66 203 Absorbed by Shields . | . . . Core Remaining (%) 100 | 100 . . Volleys Fired 107 | . 51 56 Largest 2 | . 2 2 Hottest 73 | . 60 73 Shots Fired 189 | . 102 87 Gun 86 | . 86 . Cannon 95 | . 16 79 Launcher 8 | . . 8 Special . | . . . Kinetic 189 | . 102 87 Thermal . | . . . Explosive . | . . . Electromagnetic . | . . . Robot Hit Streak 17 | . 6 17 Robot Miss Streak 5 | . 5 3 Penetration Max . | . . . Secondary Targets 1 | . 1 . Max Gunslinging Chain 1 | . 1 . Shots Hit Robots 102 | . 53 49 Core Hits 45 | . 24 21 Critical Kills . | . . . Critical Parts Destroyed . | . . . Critical Strikes 1 | . 1 . Blast 1 | . 1 . Melee Attacks . | . . . Impact . | . . . Slashing . | . . . Piercing . | . . . Sneak Attacks . | . . . Combat Hostiles . | . . . Follow-up Attacks . | . . . Damage Inflicted 1912 | . 631 1281 Guns 541 | . 541 . Cannons 943 | . 90 853 Explosions 428 | . . 428 Melee . | . . . Ramming . | . . . Kinetic 1912 | . 631 1281 Thermal . | . . . Explosive . | . . . Electromagnetic . | . . . Impact . | . . . Slashing . | . . . Piercing . | . . . Highest Corruption 2 | . 2 2 Average Corruption 2 | . 2 2 Corruption Purged . | . . . Corruption Blocked . | . . . Effects 19 | . 3 16 Message Errors 5 | . 2 3 Matter Fused 5 | . . 5 Heat Flow Errors 1 | . . 1 Energy Discharges 1 | . . 1 Parts Fused 1 | . . 1 Data Loss (minor) 2 | . 1 1 Data Loss (major) 1 | . . 1 Misfires 1 | . . 1 Alerts 1 | . . 1 Weapon Failures 1 | . . 1 Overload Shots . | . . . Overflow Damage . | . . . Projectiles . | . . . Explosions . | . . . Melee . | . . . Knockbacks 11 | . 1 10 Impact . | . . . Kinetic 11 | . 1 10 Secondary . | . . . Self-Inflicted Damage 72 | . . 72 Shots 2 | . . 2 Rammed . | . . . Targets Rammed . | . . . Kicked . | . . . Crushed . | . . . Highest Temperature 100 | . 26 100 Average Temperature 10 | . 7 75 Received Heat Transfer 291 | . 102 189 Siege Activations . | . . . Martial Activations . | . . . Shielding Activations . | . . . Robots Disrupted . | . . . Combat Hostiles . | . . . Robots Corrupted . | . . . Combat Hostiles . | . . . Parts Fried . | . . . Impact Corruptions . | . . . Robots Melted . | . . . Combat Hostiles . | . . . Parts Melted . | . . . Heat Transferred . | . . . Parts Sabotaged . | . . . Parts Stolen . | . . . Parts Stripped . | . . . Power Chain Reactions . | . . . Alert | -11 -10 -10 ------- Run | Yrd Mat Sub Maximum Alert Level . | . . . Low Security (%) 100 | 100 100 . Level 1 . | . . . Level 2 . | . . . Level 3 . | . . . Level 4 . | . . . Level 5 . | . . . High Security . | . . . Max Security . | . . . Peak Influence 71 | . 71 . Initial . | . . . Average 22 | . 23 . Influence Increases 359 | . 259 100 Destroy 0b10 Robot/C 260 | . 160 100 Destroy 0b10 Robot/NC 50 | . 50 . Destroy Leader 48 | . 48 . Destroy Structure 1 | . 1 . Influence Decreases 281 | . 259 22 Time Decay 271 | . 259 12 Lost Part 10 | . . 10 Squads Dispatched 1 | . 1 . Investigation . | . . . Extermination . | . . . Reinforcement 1 | . 1 . Assault . | . . . Garrison . | . . . Intercept . | . . . Searches Triggered . | . . . Construction Impeded . | . . . Haulers Reinforced . | . . . Active Scanning Responses . | . . . Cargo Convoy Interrupts . | . . . Stealth | -11 -10 -10 --------- Run | Yrd Mat Sub Distress Signals . | . . . Communications Jammed . | . . . Distress Signals . | . . . Times Spotted 39 | . 23 16 Peak Tracking Total 6 | . 5 6 Tactical Retreats . | . . . Traps | -11 -10 -10 ------- Run | Yrd Mat Sub Traps Triggered 1 | . 1 . Indirectly . | . . . Trap Hack Attempts . | . . . Triggered . | . . . Disarmed . | . . . Reprogrammed . | . . . Reused . | . . . Traps Extracted . | . . . Installed 1 | . . 1 Triggered . | . . . Machines | -11 -10 -10 ---------- Run | Yrd Mat Sub Machines Disabled 4 | . . 4 Max in Single Turn 3 | . . 3 Machines Repaired . | . . . Machines Dismantled . | . . . Machines Sabotaged . | . . . Overloaded Fab Kills . | . . . Hacking | -11 -10 -10 --------- Run | Yrd Mat Sub Machines Accessed 1 | . 1 . Terminals 1 | . 1 . Fabricators . | . . . Repair Stations . | . . . Recycling Units . | . . . Scanalyzers . | . . . Garrison Access . | . . . Total Hacks 3 | . 3 . Successful 1 | . 1 . Failed 2 | . 2 . Catastrophic . | . . . Database Lockouts . | . . . Manual 1 | . 1 . Terminals 3 | . 3 . Fabricators . | . . . Repair Stations . | . . . Recycling Units . | . . . Scanalyzers . | . . . Garrison Access . | . . . Terminal Hacks 1 | . 1 . Alert Level 1 | . 1 . Fabricator Hacks . | . . . Repair Station Hacks . | . . . Recycling Unit Hacks . | . . . Scanalyzer . | . . . Garrison Access Hacks . | . . . Unauthorized Hacks . | . . . Terminals . | . . . Fabricators . | . . . Repair Stations . | . . . Recycling Units . | . . . Scanalyzers . | . . . Garrison Access . | . . . Data Cores Recovered 1 | . 1 . Used . | . . . Hacking Detections 1 | . 1 . Full Trace Events 1 | . 1 . Feedback Events . | . . . Feedback Blocked . | . . . Robot Schematics Acquired . | . . . Robots Built . | . . . Authchips . | . . . Time . | . . . Total Robot Build Rating . | . . . Part Schematics Acquired . | . . . Parts Built . | . . . Authchips . | . . . Time . | . . . Total Part Build Rating . | . . . Part Studies Acquired . | . . . Parts Repaired . | . . . Time . | . . . Parts Recycled . | . . . Recycled Matter . | . . . Retrieved Matter . | . . . Retrieved Components . | . . . Parts Scanalyzed . | . . . Part Schematics Acquired . | . . . Parts Damaged . | . . . Bothacking | -11 -10 -10 ------------ Run | Yrd Mat Sub Used RIF Installer . | . . . Robots Hacked . | . . . Non-combat . | . . . Combat . | . . . Robot Hacks Applied . | . . . Relay Couplers Released . | . . . Fabnet Peak Effective % . | . . . Robots Rewired . | . . . Allies Hacked . | . . . Hacks Repelled . | . . . Allies | -11 -10 -10 -------- Run | Yrd Mat Sub Total Allies . | . . . Largest Group . | . . . Highest-Rated Group . | . . . Highest-Rated Ally . | . . . Total Orders . | . . . Ally Attacks . | . . . Total Damage . | . . . Kills . | . . . Allies Corrupted . | . . . Allies Melted . | . . . Intel | -11 -10 -10 ------- Run | Yrd Mat Sub Active Infowar (turns) . | . . . Robot Analysis Total . | . . . Derelict Logs Recovered . | . . . Drone Launches . | . . . Drone Recoveries . | . . . Exploration | -11 -10 -10 ------------- Run | Yrd Mat Sub Turns Passed 1892 | 64 808 1020 Spaces Moved 1071 | 42 439 590 Core 17 | 17 . . Treads 1 | 1 . . Legs 38 | 24 14 . Wheels 1015 | . 425 590 Hover . | . . . Flight . | . . . Fastest Speed 50 | 50 120 131 Average Speed 136 | 109 139 135 Slowest Speed 190 | 190 140 150 Overloaded Moves . | . . . Propulsion Burnouts . | . . . Robots Hopped . | . . . Potential Cave-ins . | . . . Cave-ins Triggered . | . . . Exploration Rate (%) 35 | 4 73 29 Regions Visited 2 Branch Regions 1 Pre-discovered Areas 1 | . . 1 Known Exits Taken . | . . . Unknown Exits Taken 2 | 1 1 . Scrap Searched 10 | . . 10 Spaces Dug . | . . . Terrain Destroyed 102 | . . 102 Melee . | . . . Projectile 2 | . . 2 AOE 100 | . . 100 Terrain Rammed . | . . . Walls Destroyed . | . . . Machines Disabled . | . . . Actions | -11 -10 -10 --------- Run | Yrd Mat Sub Total 1317 | 57 532 728 Wait 59 | . 7 52 Move 1069 | 41 438 590 Hop . | . . . Pick Up 43 | 8 24 11 Fast Attach 5 | 4 . 1 Attach 10 | 2 1 7 Detach . | . . . Swap 12 | 2 7 3 Drop 11 | . 4 7 Fire 107 | . 51 56 Melee . | . . . Ram . | . . . Kick . | . . . Crush . | . . . Escape Stasis . | . . . Rewire . | . . . Trap 1 | . . 1 Miscellaneous . | . . . Route ------- -11/Scrapyard -10/Materials (discovered 4 exits: [*Mat x2] / [*Min] / [*Sub]) -10/Subcaves (discovered 1 exit: [*Rec]) History --------- Turn | Location | Event 19 | -11/Scrapyard | Discovered new exit (range 16) 65 | -11/Scrapyard | Entered Materials 301 | -10/Materials | Build established: Mutant 327 | -10/Materials | Discovered new exit (range 10) 440 | -10/Materials | Discovered new exit (range 8) 533 | -10/Materials | Discovered new exit (range 15) 865 | -10/Materials | Discovered new exit (range 7) 873 | -10/Materials | Entered Subcaves 914 | -10/Subcaves | Learned location of Zion (-6) 914 | -10/Subcaves | Met a Zionite searching for "candidates" 1084 | -10/Subcaves | Lost 3 parts (1p1u1w) 1105 | -10/Subcaves | Core integrity fell below 50% 1339 | -10/Subcaves | Disturbed a concealed Subdweller 1459 | -10/Subcaves | Disturbed a concealed Subdweller 1870 | -10/Subcaves | Discovered new exit (range 15) 1880 | -10/Subcaves | Core integrity fell below 20% 1880 | -10/Subcaves | Ambushed by Subdweller buried in earth 1883 | -10/Subcaves | Ambushed by Subdweller buried in earth 1893 | -10/Subcaves | Destroyed by 1R-27L(R) with Subdweller Laser Last Messages --------------- 01871_ Machine disabled. 01874_ S-10 Pest destroyed. 01875_ Flight Unit fries itself beyond repair. 01876_ Wheel destroyed. 01878_ EG-TYK(R): "THANKSYOU!" 01880_ Flight Unit fries itself beyond repair. 01880_ S-10 Pest destroyed. 01880_ Machine disabled. 01881_ TM-ZWF(R): "ARGHSUB!" 01883_ TM-ZWF(R) knocked back. 01883_ TM-ZWF(R) destroyed. 01883_ Autobeam Turret destroyed. 01884_ 1R-27L(R): "ARGHSUB!" 01885_ Lgt. Ion Engine fries itself beyond repair. 01887_ EG-TYK(R) destroyed. 01890_ Lgt. Assault Rifle fries itself beyond repair. 01892_ System corrupted: Battle Cannon jammed. Map ----- +----------------------------------------------------+ | " [[ "#??## "#????????# # #??????????????????? | | " ["##???# "#????????# #??????????????????? | | """##??### ^#???????## ## "#?????????????????? | | #####???#"" #???????# ## "#?????????????????? | | #########""=##???????# ""###"" ????????????????? | | " "# [ ###???????# "" #? ???????????????? | | " !! ##]% #???????## ""#?# ??????????????? | | #" "## "##""#???????# ###?? ??????????????? | | #####"! "#####???????## ##????# ??????????????? | | ### !######????# &#??????? #??????????????? | | ! #######! ##?????? ??????????????? | | ##### [ ## #"# &####????##?????????????? | | #####% " # ##? ##????????????? | | ##% ## ## "## #????????????? | | # ##### #? "" #????????????? | | ## ## #### ## " #????????????? | | ####### ### #????????????? | | ###?????######?# #????????????? | | ???????????????# ### #????????????? | | ???????????????## ###### #????????????? | | ????????????########## ;;; ## #???????????? | | ???????????## ## #?? #??????????? | | ??????????? ; ; ##?? #??????????? | | ?????????? ;; ##??? #??????????? | | ?????????? | #???? #??????????? | | ?????????? <% @ ###?????????????????? | | ?????????? ! [ R #???????????????????? | | ?????????? % #???????????????????? | | ??????????? # !% # #???????????????????? | | ??????????? ??# # #???????????????????? | | ???????????? ????## ## ???????????????????? | | ????????????????????#######? ??????????????????? | | ???????????????????????????? ?????????????????? | | ???????????????????????????? ????????????????? | | ?????????????????????????????# ???????????????? | | ?????????????????????????????? ??????????????? | | ?????????????????????????????? ## ?????????????? | | ??????????????????????????????? #???????????????? | | ????????????????????????????????#????????????????? | | ?????????????????????????????????????????????????? | | ?????????????????????????????????????????????????? | | ?????????????????????????????????????????????????? | | ?????????????????????????????????????????????????? | | ?????????????????????????????????????????????????? | | ?????????????????????????????????????????????????? | | ?????????????????????????????????????????????????? | | ?????????????????????????????????????????????????? | | ?????????????????????????????????????????????????? | | ?????????????????????????????????????????????????? | | ?????????????????????????????????????????????????? | +----------------------------------------------------+ Best States ------------- Heat Dissipation 35 Energy Generation 10 Energy Capacity 250 Matter Stores 300 Matter Capacity 300 Sight Range 16 Terrain Scan Density 10 Armor Coverage 150 Evasion (%) 55 Item Schematics ----------------- None Robot Schematics ------------------ None Fabricated ------------ Nothing Repaired ---------- Nothing Studied --------- None Alien Tech Used ----------------- None Achievements -------------- None Challenges ------------ None Game ------ Seed DeflectorBeamShield Manual? 0 Play Time 00:16:14 Cumulative 279.7 hours Start 2025.12.11 @ 21:44:19 End 2025.12.11 @ 22:09:47 Sessions 1 Manual Loads 0 Difficulty Rogue Special Mode None Game No. 443 Rogue 443 Adventurer 0 Explorer 0 Win Type - Total 1 Types 1/0/0/0/0/0/0/0/0/0 Lore% 65 Gallery% 62 Achievement% 29 Wizard Run 0 Options --------- Layout 1 ASCII 0 Keyboard 0 Movement Mouse Keybinds 0 Fullscreen 2 Font 24/Smallcaps Map View 50x35 Zoom Use 0% Tactical HUD 1 Map Filters NONE Filters NONE Steam 1 RUN: 551a7dce-c4c7-446b-bace-6070612bc84f